bitfinex-derivatives/quotes_ETHF0:USTF0_20251210
["timestamp","ask_amount","ask_price","bid_price","bid_amount"]
[1765366550902,0.00325939,3314.3,3312.7,2.16633644]
[1765366551103,0.00325939,3314.3,3312.9,2.16633644]
[1765366551303,0.00325939,3314.3,3313.0,2.16633644]
[1765366552011,0.00452202,3314.0,3313.0,2.16633644]
[1765366554505,0.00452202,3314.0,3312.9,2.16633644]
[1765366555009,0.00452202,3314.0,3313.0,2.16633644]
[1765366556911,0.00452202,3314.0,3313.1,1.80416131]
[1765366557204,0.00452202,3314.0,3313.5,0.4227]
[1765366557409,0.00325939,3314.3,3314.0,0.4227]
[1765366559708,0.70819369,3315.8,3314.0,0.4227]
[1765366559905,2.707,3316.5,3314.1,1.80416131]
[1765366560110,0.99423303,3316.4,3314.1,3.97049775]
[1765366560304,1.80416131,3316.3,3314.1,3.97049775]
[1765366560607,9.20953338,3316.8,3314.1,3.97049775]
[1765366560608,0.70812216,3316.2,3314.2,2.16633644]
[1765366560811,0.00452202,3315.5,3315.0,0.4227]
[1765366561008,0.00452202,3315.5,3315.0,0.42621681]
[1765366568311,0.00309114,3316.3,3316.0,0.4197]
[1765366573116,6.0,3316.2,3315.5,0.4197]
[1765366573322,0.00309114,3316.3,3315.5,0.4197]
[1765366576719,6.00309114,3316.3,3315.5,0.4197]
[1765366577218,0.70867078,3316.2,3315.5,0.4197]
[1765366577814,0.00309114,3316.3,3315.5,0.4197]
[1765366582023,0.00309114,3316.3,3316.0,0.4197]
[1765366582218,0.00309114,3316.3,3315.5,0.4197]
[1765366582626,0.28953762,3316.3,3315.5,0.4197]
[1765366582916,0.99832322,3316.3,3315.5,0.4197]
[1765366583121,0.99523208,3316.2,3315.5,0.4197]
[1765366583323,0.7087856,3316.1,3315.5,0.4197]
[1765366583523,0.7087856,3316.0,3315.5,0.4197]
[1765366583724,0.7087856,3315.9,3315.5,0.4197]
[1765366583924,0.7087856,3315.8,3315.5,0.4197]
[1765366584124,0.7087856,3315.7,3315.5,0.4197]
[1765366584320,0.7087856,3315.6,3315.0,0.42621681]
[1765366584522,0.99569919,3315.5,3315.0,0.42621681]
[1765366584716,0.7087856,3315.4,3315.0,0.42621681]
[1765366584917,0.7087856,3315.3,3315.0,0.42621681]
[1765366585117,0.7087856,3315.2,3315.0,0.42621681]
[1765366585317,0.7087856,3315.1,3315.0,0.42621681]
[1765366585714,1.60953338,3315.8,3315.0,0.42621681]
[1765366586022,0.28694162,3315.7,3315.0,0.42621681]
[1765366586325,1.896475,3315.7,3315.0,0.42621681]
[1765366586512,0.28694162,3315.6,3315.0,0.42621681]
[1765366586717,0.99572722,3315.6,3315.0,1.11301681]
[1765366586917,0.99572722,3315.5,3315.0,0.42621681]
[1765366587118,0.99572722,3315.4,3315.0,0.42621681]
[1765366587326,0.7087856,3315.3,3315.0,0.42621681]
[1765366587626,0.7087856,3315.2,3315.0,0.42621681]
[1765366587819,0.7087856,3315.1,3315.0,0.42621681]
[1765366588219,1.60953338,3315.7,3315.0,0.42621681]
[1765366588527,0.28743901,3315.6,3315.0,0.42621681]
[1765366589427,1.89697239,3315.6,3315.0,0.42621681]
[1765366589628,0.28743901,3315.5,3315.0,0.42621681]
[1765366590627,0.99622461,3315.5,3315.0,1.80651681]
[1765366590819,0.99622461,3315.4,3315.0,1.80651681]
[1765366591025,0.7087856,3315.3,3315.0,1.80651681]
[1765366591225,0.7087856,3315.2,3315.1,0.7376]
[1765366591524,0.7087856,3315.2,3315.0,0.42621681]
[1765366591731,0.7087856,3315.1,3315.0,0.00351681]
[1765366592132,0.7087856,3315.4,3315.0,0.00351681]
[1765366592330,0.99591887,3315.3,3315.0,0.00351681]
[1765366592633,0.99591887,3315.2,3315.0,0.00351681]
[1765366592828,0.7087856,3315.1,3315.0,0.00351681]
[1765366593134,0.99588536,3315.4,3315.0,0.00351681]
[1765366593328,0.99588536,3315.3,3315.0,0.00351681]
[1765366593530,0.99588536,3315.2,3315.0,0.00351681]
[1765366593731,0.99588536,3315.1,3315.0,0.00351681]
[1765366593923,0.99588536,3315.1,3314.9,0.00452202]
[1765366594126,0.7087856,3315.0,3314.9,0.00452202]
[1765366594426,1.60953338,3315.2,3314.0,1.1573]
[1765366594632,1.60953338,3315.2,3314.0,1.8508]
[1765366594633,0.28690881,3315.1,3314.0,1.8508]
[1765366594833,7.88690881,3315.1,3314.0,1.8508]
[1765366595033,0.99569441,3315.0,3314.0,1.85462347]
[1765366595331,0.00452202,3314.8,3314.2,0.00452202]
[1765366596431,0.00452202,3314.8,3314.2,0.74212202]
[1765366596824,0.00452202,3314.8,3314.2,0.00452202]
[1765366597025,1.00021643,3314.8,3314.2,0.00452202]
[1765366597228,0.28690881,3314.7,3314.2,0.00452202]
[1765366598029,0.71330762,3314.8,3314.2,0.00452202]
[1765366600536,0.71330762,3314.8,3314.5,0.4027]
[1765366601632,0.71330762,3314.8,3314.2,0.00452202]
[1765366602336,0.28639467,3314.7,3314.2,0.00452202]
[1765366602834,0.28639467,3314.7,3314.5,0.4027]
[1765366603340,0.28639467,3314.7,3314.2,0.00452202]
[1765366603540,12.22939467,3314.7,3314.2,0.00452202]
[1765366603838,0.7087856,3314.6,3314.5,0.4027]
[1765366604542,0.99518718,3314.6,3314.2,0.00452202]
[1765366604742,0.28640158,3314.5,3314.2,0.00452202]
[1765366605050,0.28640158,3314.5,3314.0,0.42352347]
[1765366605337,2.04105727,3314.2,3314.0,0.42352347]
[1765366605537,0.7087856,3314.1,3314.0,0.42352347]
[1765366605736,0.99510403,3314.1,3314.0,0.42352347]
[1765366605931,0.99510403,3314.1,3314.0,0.00382347]
[1765366606440,0.99510403,3314.1,3313.7,0.00452202]
[1765366606641,0.7087856,3314.1,3313.7,0.00452202]
[1765366607342,0.7087856,3314.1,3313.7,0.00752124]
[1765366607544,0.28631633,3314.0,3313.7,0.00752124]
[1765366607742,0.7087856,3314.1,3313.7,0.00752124]
[1765366608244,0.28630378,3314.0,3313.7,0.00752124]
[1765366610439,0.28630378,3314.0,3313.5,0.4027]
[1765366611039,7.6,3313.9,3313.5,1.8338]
[1765366611246,0.7087856,3313.8,3313.5,0.4027]
[1765366611542,0.71145872,3313.8,3313.5,0.40612669]
[1765366612639,1.20351179,3313.6,3313.3,1.43562202]
[1765366612842,1.20351179,3313.6,3313.5,1.1403]
[1765366613040,1.20351179,3313.6,3313.5,1.8338]
[1765366613238,1.91254161,3313.6,3313.5,1.8338]
[1765366613832,1.91254161,3313.6,3313.5,1.83719989]
[1765366614042,1.91254161,3313.6,3313.5,1.14369989]
[1765366614241,1.4042,3313.4,3313.3,1.43562202]
[1765366615246,1.4042,3313.4,3313.3,0.74484519]
[1765366615645,1.4042,3313.4,3313.3,1.43834519]
[1765366616144,1.4042,3313.4,3311.5,0.4027]
[1765366616145,1.4042,3311.8,3311.3,2.16633644]
[1765366616443,1.4042,3311.8,3310.4,5.36136895]
[1765366616444,1.4042,3310.3,3310.2,1.4311]
[1765366616641,2.60771179,3310.3,3310.2,1.4311]
[1765366616847,1.4042,3310.1,3310.0,1.4311]
[1765366617036,2.14135372,3310.1,3310.0,1.4311]
[1765366617242,1.40786673,3310.1,3310.0,1.43420671]
[1765366618142,1.40786673,3310.1,3310.0,0.00310671]
[1765366618344,0.7185,3310.0,3309.9,0.7069]
[1765366618539,0.7185,3309.8,3309.7,1.39383996]
[1765366619141,1.4276,3309.8,3309.7,0.00303996]
[1765366619452,0.4299,3308.5,3307.9,0.6839]
[1765366619648,5.043,3308.4,3307.9,0.68773237]
[1765366619850,0.4299,3308.5,3307.9,0.68773237]
[1765366619851,0.4299,3308.5,3308.0,0.4241]
[1765366620056,0.7185,3308.1,3308.0,1.8149]
[1765366620252,1.4321296,3308.4,3308.3,0.6839]
[1765366620946,0.0045296,3308.4,3308.3,1.3908]
[1765366621545,0.4299,3309.0,3308.3,1.3908]
[1765366621546,0.73029878,3309.1,3309.0,1.3908]
[1765366621852,7.7809,3309.5,3309.0,1.3908]
[1765366622349,0.4299,3309.0,3308.5,0.4241]
[1765366622653,0.0045296,3309.1,3309.0,1.8149]
[1765366624253,0.0045296,3309.1,3309.0,7.8149]
[1765366624450,1.4276,3310.0,3309.9,0.6839]
[1765366624655,0.7185,3310.0,3309.9,1.3908]
[1765366625056,1.4276,3310.0,3309.9,0.6839]
[1765366625349,1.4276,3310.0,3309.0,0.4241]
[1765366625350,0.7091,3310.0,3309.0,0.4241]
[1765366625552,0.4299,3310.0,3309.5,1.3908]
[1765366625748,0.7185,3310.0,3309.9,1.3908]
[1765366626150,1.4276,3310.0,3309.9,0.6839]
[1765366626353,0.72669633,3310.1,3310.0,1.3908]
[1765366626551,0.00819633,3310.1,3310.0,1.3908]
[1765366626854,0.00819633,3310.1,3310.0,1.8149]
[1765366629255,0.72669633,3310.1,3310.0,1.8149]
[1765366629558,0.72669633,3310.1,3310.0,1.3908]
[1765366629761,2.06869633,3310.1,3309.5,0.4241]
[1765366630058,3.4422,3310.0,3309.9,1.294]
[1765366630263,2.6742,3310.0,3309.9,2.5716]
[1765366630766,2.6742,3310.0,3309.5,0.4241]
[1765366630767,0.00819633,3310.1,3310.0,3.309]
[1765366631064,1.34039633,3310.1,3310.0,3.309]
[1765366631562,0.00819633,3310.1,3310.0,3.309]
[1765366632164,1.34039633,3310.1,3310.0,3.309]
[1765366632365,2.68239633,3310.1,3310.0,1.294]
[1765366633163,1.34039633,3310.1,3310.0,2.5716]
[1765366633367,2.68239633,3310.1,3310.0,2.5716]
[1765366634162,0.00819633,3310.1,3310.0,3.309]
[1765366636365,1.34039633,3310.1,3310.0,3.309]
[1765366636665,0.00819633,3310.1,3310.0,3.309]
[1765366639263,2.68239633,3310.1,3309.5,0.4241]
[1765366639467,2.68239633,3310.1,3310.0,2.5716]
[1765366639661,0.73916864,3310.1,3310.0,3.309]
[1765366639861,0.00819633,3310.1,3310.0,3.309]
[1765366641363,0.73150263,3310.7,3310.6,2.5716]
[1765366641563,1.3322,3311.3,3311.2,2.5716]
[1765366641866,2.38494765,3311.3,3311.2,2.5716]
[1765366642057,3.98903062,3311.3,3311.2,2.5716]
[1765366642261,5.33410422,3311.3,3311.2,0.00322134]
[1765366642572,1.3322,3311.0,3310.9,2.5761296]
[1765366642767,0.32041337,3311.0,3310.9,2.5761296]
[1765366642962,1.05274765,3311.1,3311.0,3.309]
[1765366643164,0.0030736,3311.3,3311.2,2.5716]
[1765366643369,0.0030736,3311.3,3311.2,2.57430402]
[1765366643567,0.32422455,3311.3,3311.2,2.57430402]
[1765366643870,0.0030736,3311.3,3311.2,2.57430402]
[1765366644269,0.32422455,3311.3,3311.2,2.57430402]
[1765366644460,1.05618405,3311.3,3311.2,2.57430402]
[1765366645069,0.32422455,3311.3,3311.2,2.57430402]
[1765366645273,0.0030736,3311.3,3311.2,2.57430402]
[1765366645771,1.04455547,3311.3,3311.2,2.57430402]
[1765366645966,0.31259597,3311.3,3311.2,2.57430402]
[1765366646179,2.33911607,3311.3,3311.2,2.57430402]
[1765366646469,2.64863844,3311.3,3311.2,2.57430402]
[1765366646970,1.04455547,3311.3,3311.2,2.57430402]
[1765366647669,0.31259597,3311.3,3311.2,2.57430402]
[1765366648058,0.0030736,3311.3,3311.2,2.57430402]
[1765366649372,0.7350331,3311.3,3311.2,2.57430402]
[1765366649571,0.0030736,3311.3,3311.2,2.57430402]
[1765366649967,1.04612226,3311.6,3311.5,2.6333]
[1765366650169,0.0045296,3311.6,3311.5,2.6333]
[1765366650866,0.73874931,3311.6,3311.5,2.6333]
[1765366651069,0.00678981,3311.6,3311.5,2.6333]
[1765366651863,0.7319595,3311.8,3311.7,2.0727]
[1765366652072,0.768,3312.5,3312.3,2.0727]
[1765366652073,3.65678297,3312.4,3312.3,2.0727]
[1765366652271,4.69750171,3312.4,3312.3,2.0727]
[1765366652570,3.65460171,3312.4,3312.3,2.0727]
[1765366652772,3.65460171,3312.4,3311.5,0.5606]
[1765366652773,1.0098,3311.6,3311.5,2.6333]
[1765366652967,3.66705237,3312.3,3312.2,2.0727]
[1765366653164,4.70817813,3312.3,3312.2,2.0727]
[1765366653874,1.04112576,3312.3,3312.2,2.0727]
[1765366654071,0.00295089,3312.3,3312.2,2.0727]
[1765366655171,0.0045296,3312.6,3312.5,2.5926]
[1765366656069,1.0143296,3312.6,3312.5,2.5926]
[1765366656269,0.00806237,3312.6,3312.5,2.5926]
[1765366657179,1.01786237,3312.6,3312.5,2.5926]
[1765366657577,0.00806237,3312.6,3312.5,2.5926]
[1765366657883,1.0098,3312.1,3312.0,1.4842]
[1765366658067,0.00806237,3312.6,3312.5,1.0308]
[1765366658266,0.00806237,3312.6,3312.5,2.634]
[1765366658770,2.06076237,3312.6,3312.0,0.4534]
[1765366659378,2.06076237,3312.6,3312.5,1.0308]
[1765366659876,2.6172,3312.5,3312.4,1.0308]
[1765366660278,2.6172,3312.5,3312.4,2.0727]
[1765366660780,2.0527,3312.1,3312.0,2.0727]
[1765366661682,1.0098,3312.1,3312.0,2.3938]
[1765366662075,2.6172,3312.5,3312.4,1.0308]
[1765366662281,3.33508819,3312.5,3312.4,1.0308]
[1765366662579,2.0527,3312.1,3312.0,2.3938]
[1765366662872,2.0527,3312.1,3312.0,1.0308]
[1765366663077,2.5926,3312.0,3311.9,1.0308]
[1765366663279,1.0098,3311.6,3311.5,2.6333]
[1765366663581,2.5926,3312.0,3311.9,1.0308]
[1765366663876,2.5926,3312.0,3311.9,2.0727]
[1765366664377,2.0527,3312.0,3311.9,2.0727]
[1765366664683,1.0098,3312.0,3311.9,2.0727]
[1765366665979,2.0527,3312.0,3311.9,2.0727]
[1765366666376,1.0098,3312.0,3311.9,2.0727]
[1765366666678,0.00806237,3312.6,3312.5,2.6849]
[1765366666882,2.06076237,3312.6,3312.5,2.6849]
[1765366667078,2.77932003,3312.6,3312.5,2.6849]
[1765366667278,2.04563145,3312.6,3312.5,2.6849]
[1765366667475,0.72662003,3312.6,3312.5,2.6849]
[1765366667676,0.00806237,3312.6,3312.5,2.6849]
[1765366668777,0.72692834,3312.6,3312.5,2.6849]
[1765366668982,0.00806237,3312.6,3312.5,2.6849]
[1765366669372,1.01786237,3312.6,3312.5,2.6849]
[1765366669685,2.06076237,3312.6,3312.5,2.0727]
[1765366669884,2.3635,3312.5,3312.4,1.0308]
[1765366670083,3.08299719,3312.5,3312.4,1.0308]
[1765366670283,3.39266365,3312.5,3312.4,2.0727]
[1765366672082,3.39266365,3312.5,3312.4,1.0308]
[1765366673090,2.0527,3312.1,3312.0,2.2662]
[1765366673288,3.08298771,3312.1,3312.0,1.0308]
[1765366673485,3.08298771,3312.1,3312.0,2.0727]
[1765366674294,3.08298771,3312.1,3312.0,1.0308]
[1765366674485,3.08298771,3312.1,3312.0,2.0727]
[1765366675386,1.03028771,3312.1,3312.0,2.6708]
[1765366675692,0.00806237,3312.6,3312.0,2.6708]
[1765366675693,0.72314396,3312.6,3312.5,2.6849]
[1765366675986,1.32796027,3312.6,3312.5,2.6849]
[1765366676189,2.04304186,3312.6,3312.5,2.6849]
[1765366676389,1.03324186,3312.6,3312.5,2.6849]
[1765366676787,0.31816027,3312.6,3312.5,2.6849]
[1765366677092,2.06076237,3312.6,3312.5,2.0727]
[1765366677392,3.08594186,3312.6,3312.5,1.0308]
[1765366677593,3.08594186,3312.6,3312.5,1.8646]
[1765366678593,3.08594186,3312.6,3312.5,1.0308]
[1765366679290,3.08594186,3312.6,3312.5,1.8646]
[1765366679990,1.03324186,3312.6,3312.5,2.32]
[1765366680390,1.90056027,3312.6,3312.5,2.32]
[1765366680689,2.61564186,3312.6,3312.5,1.8646]
[1765366680889,2.61564186,3312.6,3312.5,1.0308]
[1765366681196,2.61564186,3312.6,3312.5,1.8646]
[1765366681400,2.61564186,3312.6,3312.5,1.0308]
[1765366682290,2.61564186,3312.6,3312.5,1.8646]
[1765366685107,1.80564186,3312.6,3312.5,2.2922]
[1765366685804,1.03324186,3312.6,3312.5,2.2922]
[1765366685995,0.31816027,3312.6,3312.5,2.2922]
[1765366686192,0.00806237,3312.6,3312.5,2.2922]
[1765366689600,0.31077926,3313.3,3313.2,1.6041]
[1765366689897,1.89317926,3313.3,3313.2,1.6041]
[1765366690101,2.60965803,3313.3,3313.2,1.6041]
[1765366690304,2.29887877,3313.3,3313.2,1.6041]
[1765366690602,1.49228181,3313.3,3313.2,1.6041]
[1765366690896,0.71988181,3313.3,3313.2,1.6041]
[1765366691102,0.00340304,3313.3,3313.2,1.6041]
[1765366691301,0.77580304,3313.3,3313.2,1.6041]
[1765366691700,0.00340304,3313.3,3313.2,1.6041]
[1765366695002,1.46710304,3313.3,3313.2,1.6041]
[1765366695205,0.73720304,3313.3,3313.2,1.6041]
[1765366695901,1.46710304,3313.3,3313.2,1.6041]
[1765366696510,0.73720304,3313.3,3313.2,1.6041]
[1765366696703,0.00340304,3313.3,3313.2,1.6041]
[1765366701410,1.46710304,3313.3,3313.2,1.6041]
[1765366701805,0.73720304,3313.3,3313.2,1.6041]
[1765366702715,0.00340304,3313.3,3313.2,1.6041]
[1765366705306,0.73720304,3313.3,3313.2,1.6041]
[1765366708012,0.00340304,3313.3,3313.2,1.6041]
[1765366709517,0.74520304,3313.3,3313.2,1.6041]
[1765366709714,0.31381399,3313.3,3313.0,0.7214]
[1765366709914,1.449,3313.1,3313.0,1.3967]
[1765366710511,0.7418,3313.1,3313.0,1.5758]
[1765366710918,1.449,3313.1,3313.0,1.5758]
[1765366711913,1.449,3313.0,3312.9,1.4012296]
[1765366712420,1.449,3313.0,3311.5,1.7639417]
[1765366712421,1.11,3312.0,3311.9,0.7214]
[1765366712607,1.2033417,3312.1,3312.0,1.7184]
[1765366712813,1.449,3312.4,3312.3,1.3967]
[1765366713117,2.47557452,3312.4,3312.3,1.3967]
[1765366713506,1.3942,3312.1,3312.0,1.7714296]
[1765366713707,0.71613026,3312.1,3312.0,1.7714296]
[1765366713916,0.6746,3312.5,3312.4,1.4452]
[1765366714116,1.3942,3312.5,3312.4,1.4452]
[1765366714421,1.70106288,3312.5,3312.4,1.4452]
[1765366714918,2.82436288,3312.5,3312.4,1.4452]
[1765366715218,2.42066288,3312.5,3312.4,1.4452]
[1765366716812,1.02646288,3312.5,3312.4,1.4452]
[1765366717009,0.71602721,3312.5,3312.0,0.3262296]
[1765366717212,1.3942,3312.9,3312.8,1.4452]
[1765366717408,2.42017825,3312.9,3312.8,1.4452]
[1765366717625,1.70057825,3312.9,3312.8,1.4452]
[1765366718016,2.42017825,3312.9,3312.8,1.4452]
[1765366719320,1.02597825,3312.9,3312.8,1.4452]
[1765366719624,1.70450396,3312.9,3312.8,1.4452]
[1765366719824,2.42017825,3312.9,3312.8,1.4452]
[1765366721020,1.3942,3312.9,3312.8,1.4452]
[1765366722819,1.3942,3312.9,3312.8,0.7333]
[1765366723217,1.3942,3312.6,3312.5,1.8697]
[1765366723421,1.3942,3312.6,3312.5,1.4452]
[1765366724119,1.7979,3312.5,3312.4,0.7333]
[1765366724315,1.7979,3312.5,3312.0,0.3262296]
[1765366724528,1.79155455,3312.5,3312.4,0.7333]
[1765366724730,2.50732093,3312.5,3312.4,0.7333]
[1765366725119,2.50732093,3312.5,3312.0,0.3262296]
[1765366725427,1.79155455,3312.5,3312.4,0.7333]
[1765366725622,2.50721614,3312.5,3312.4,0.7333]
[1765366725926,2.50721614,3312.5,3312.4,1.4452]
[1765366727426,2.10986159,3312.5,3312.4,1.4452]
[1765366727929,1.3942,3312.5,3312.4,1.4452]
[1765366728230,0.6746,3312.5,3312.4,1.4452]
[1765366729630,1.3942,3312.5,3312.4,1.4452]
[1765366730126,0.6746,3312.6,3312.5,1.8697]
[1765366730324,1.70444027,3312.9,3312.8,1.4452]
[1765366730524,1.3942,3312.6,3312.5,0.7333]
[1765366730730,1.7979,3312.5,3312.4,1.4452]
[1765366730930,1.3942,3312.5,3312.4,1.4452]
[1765366731531,0.6746,3312.6,3312.5,1.8697]
[1765366732125,1.39027907,3312.6,3312.5,1.8697]
[1765366732335,2.42015472,3312.6,3312.5,1.8697]
[1765366733226,2.42015472,3312.6,3312.5,1.4452]
[1765366734035,2.42015472,3312.6,3312.5,0.7333]
[1765366734238,2.42015472,3312.6,3312.5,1.4452]
[1765366734637,3.62415053,3312.6,3312.5,0.7333]
[1765366735030,0.6739,3312.1,3312.0,1.7168296]
[1765366735227,1.87789581,3312.1,3312.0,1.7168296]
[1765366736136,2.59839581,3312.1,3312.0,1.3951296]
[1765366736438,1.20399581,3312.1,3312.0,1.7779296]
[1765366736833,1.87789581,3312.1,3312.0,1.7779296]
[1765366737238,2.59839581,3312.1,3312.0,1.7779296]
[1765366737439,2.59839581,3312.1,3312.0,1.3951296]
[1765366738039,2.59839581,3312.1,3312.0,0.0045296]
[1765366738240,2.59839581,3312.1,3312.0,0.7120296]
[1765366738540,2.59839581,3312.1,3312.0,1.4529296]
[1765366738740,1.87789581,3312.1,3312.0,1.8046296]
[1765366738930,1.20399581,3312.1,3312.0,1.8046296]
[1765366739134,1.8426,3312.5,3312.4,1.4484]
[1765366739437,4.07473209,3312.5,3312.4,1.4484]
[1765366740444,1.4114,3312.1,3312.0,0.0045296]
[1765366740739,3.64353209,3312.1,3312.0,0.7120296]
[1765366740944,0.6735,3311.6,3311.5,2.009]
[1765366741242,1.87749581,3311.6,3311.5,2.009]
[1765366742034,1.20852541,3311.9,3311.8,1.4484]
[1765366742241,0.0045296,3311.9,3311.8,1.4484]
[1765366745048,0.6780296,3311.9,3311.8,1.4484]
[1765366745545,0.6780296,3311.9,3311.8,0.7075]
[1765366745546,1.4159296,3311.9,3311.8,0.7075]
[1765366745841,2.44507446,3311.9,3311.8,1.4484]
[1765366746044,2.44507446,3311.9,3311.8,0.7075]
[1765366746347,1.4114,3311.6,3311.5,2.009]
[1765366746643,2.61539581,3311.6,3311.5,1.4484]
[1765366746842,2.61539581,3311.6,3311.5,0.7075]
[1765366747144,3.33350017,3311.6,3311.5,0.7075]
[1765366747546,3.64420518,3311.6,3311.5,0.7075]
[1765366747750,3.33350017,3311.6,3311.5,1.4484]
[1765366748044,3.33350017,3311.6,3311.2,0.00723362]
[1765366748045,1.4231,3311.3,3311.2,1.41733362]
[1765366748348,2.14067048,3311.3,3311.2,0.00723362]
[1765366748543,2.14067048,3311.3,3311.2,1.41733362]
[1765366749147,2.4512277,3311.3,3311.2,1.41733362]
[1765366750340,1.7491277,3311.3,3311.2,1.41733362]
[1765366750545,0.71757048,3311.3,3311.2,1.41733362]
[1765366750844,2.13990788,3311.7,3311.2,0.00723362]
[1765366751040,1.3899,3311.3,3311.2,1.37953362]
[1765366751436,2.10657264,3311.3,3311.2,1.37953362]
[1765366751640,0.7005,3311.3,3311.2,1.37953362]
[1765366752047,1.80711886,3311.8,3311.2,1.37953362]
[1765366752245,2.41675331,3311.7,3311.6,0.6972]
[1765366753043,2.41675331,3311.7,3311.6,1.3723]
[1765366753248,0.7005,3311.3,3311.2,1.37953362]
[1765366753551,1.80711886,3311.8,3311.2,1.37953362]
[1765366753847,2.41656986,3311.7,3311.6,0.6972]
[1765366754442,2.41656986,3311.7,3311.6,1.3723]
[1765366754648,1.41704128,3311.7,3311.6,1.3723]
[1765366754844,2.10644128,3311.7,3311.6,1.3723]
[1765366756650,0.7005,3311.3,3311.2,1.37953362]
[1765366756853,0.0045296,3311.9,3311.2,1.37953362]
[1765366757048,1.3899,3310.6,3310.5,1.7968]
[1765366757246,1.3899,3311.0,3310.9,1.3723]
[1765366757445,1.80711886,3311.3,3310.9,1.3723]
[1765366757745,1.80711886,3311.3,3311.2,0.6972]
[1765366757746,3.19701886,3311.3,3311.2,0.6972]
[1765366758045,4.22605616,3311.3,3311.2,0.69943857]
[1765366758555,4.22605616,3311.3,3311.2,0.00223857]
[1765366759551,2.10892421,3311.3,3311.2,1.37453857]
[1765366760346,1.41952421,3311.3,3311.2,1.37453857]
[1765366760547,0.70324211,3311.3,3311.2,1.37453857]
[1765366761449,0.00274211,3311.3,3311.2,1.37453857]
[1765366761653,1.39264211,3311.3,3311.2,1.37453857]
[1765366762558,0.70324211,3311.3,3311.2,1.37453857]
[1765366763160,1.39264211,3311.3,3311.2,1.37453857]
[1765366764258,0.70324211,3311.3,3311.2,1.37453857]
[1765366764453,2.10897835,3311.3,3311.2,0.00223857]
[1765366764648,2.10897835,3311.3,3311.2,0.69943857]
[1765366765151,2.41900051,3311.3,3311.2,1.37453857]
[1765366765656,2.41900051,3311.3,3311.2,0.69943857]
[1765366765855,2.41900051,3311.3,3311.2,0.00223857]
[1765366766451,4.22611937,3311.3,3311.2,0.00223857]
[1765366768758,4.22611937,3311.3,3311.2,0.69943857]
[1765366769354,4.22611937,3311.3,3311.2,0.00223857]
[1765366769550,4.22611937,3311.3,3311.2,0.72703857]
[1765366770458,4.22611937,3311.3,3311.2,1.43143857]
[1765366771555,2.41900051,3311.3,3311.2,1.43143857]
[1765366771754,2.10897835,3311.3,3311.2,1.43143857]
[1765366772059,2.41936257,3311.3,3311.2,1.43143857]
[1765366773555,4.22648143,3311.3,3311.2,0.00223857]
[1765366773761,1.8393,3311.0,3310.0,0.4352]
[1765366773948,1.02672046,3310.9,3310.0,0.4352]
[1765366774154,0.71633624,3310.9,3310.0,0.4352]
[1765366774354,1.02697356,3310.8,3310.0,0.4352]
[1765366774561,0.4042,3311.0,3310.0,0.4352]
[1765366774759,0.4042,3311.0,3310.2,0.0045296]
[1765366775257,1.43312165,3311.0,3310.2,0.0045296]
[1765366775460,1.02892165,3310.9,3310.2,0.0045296]
[1765366775661,0.31063683,3310.8,3310.2,0.0045296]
[1765366775960,1.4351,3310.3,3310.2,1.4337296]
[1765366776555,1.4351,3310.3,3310.2,0.7293296]
[1765366776954,1.4351,3310.3,3310.2,0.0045296]
[1765366777155,2.46439585,3310.3,3310.2,0.0045296]
[1765366777555,2.46439585,3310.3,3310.2,0.7293296]
[1765366778266,1.4351,3310.1,3310.0,0.00296964]
[1765366778449,2.46439585,3310.1,3310.0,0.00296964]
[1765366778655,2.46439585,3310.1,3310.0,0.72776964]
[1765366779157,2.46439585,3310.1,3310.0,1.43216964]
[1765366779450,2.15365901,3310.1,3310.0,0.72776964]
[1765366780458,1.4351,3310.1,3310.0,1.43216964]
[1765366780862,1.4351,3310.1,3310.0,0.72776964]
[1765366781556,1.4351,3310.5,3310.4,1.4292]
[1765366781757,2.46277198,3310.5,3310.4,1.4292]
[1765366782262,2.15251696,3310.5,3310.4,1.4292]
[1765366782462,1.44151696,3310.5,3310.4,1.4292]
[1765366782759,0.7241,3310.1,3310.0,1.85946964]
[1765366782958,1.20531018,3310.1,3310.0,1.85946964]
[1765366783756,2.64041018,3310.1,3310.0,1.43216964]
[1765366783963,2.64041018,3310.1,3310.0,0.72776964]
[1765366784157,2.64041018,3310.1,3310.0,1.43216964]
[1765366784951,2.64041018,3310.1,3310.0,0.72776964]
[1765366785357,2.64041018,3310.1,3310.0,1.43216964]
[1765366785564,1.92941018,3310.1,3310.0,1.85946964]
[1765366785962,2.64041018,3310.1,3310.0,1.85946964]
[1765366786158,2.64041018,3310.1,3310.0,0.00296964]
[1765366786367,0.4042,3310.0,3309.0,0.4273]
[1765366786661,0.4042,3310.0,3309.7,1.4292]
[1765366786662,0.0045296,3309.8,3309.7,1.4292]
[1765366787060,0.7286296,3309.8,3309.7,1.4292]
[1765366787259,0.7286296,3309.8,3309.7,1.43308951]
[1765366787460,0.0045296,3309.8,3309.7,1.43308951]
[1765366788956,1.4396296,3309.8,3309.7,1.43308951]
[1765366789663,0.0045296,3309.8,3309.7,1.43308951]
[1765366789965,1.4396296,3309.8,3309.7,1.43308951]
[1765366791662,1.4396296,3309.8,3309.7,0.00388951]
[1765366792166,1.4396296,3309.8,3309.7,0.72868951]
[1765366792567,1.4396296,3309.8,3309.7,0.00388951]
[1765366793261,1.4396296,3309.8,3309.7,0.72868951]
[1765366793569,0.0045296,3309.8,3309.7,1.43308951]
[1765366795470,1.4396296,3309.8,3309.7,1.43308951]
[1765366795863,0.7286296,3309.8,3309.7,1.43308951]
[1765366796260,0.0045296,3309.8,3309.7,1.43308951]
[1765366799167,0.31070794,3310.3,3310.2,1.4418]
[1765366799368,1.4703,3310.8,3310.7,1.4418]
[1765366799563,1.4703,3309.8,3309.7,0.00388951]
[1765366799865,1.4703,3309.8,3309.7,1.44568951]
[1765366800070,0.7384,3310.1,3310.0,1.8609]
[1765366800264,1.4703,3310.1,3310.0,1.8609]
[1765366800571,2.50017282,3310.1,3310.0,0.7109]
[1765366801065,1.4703,3309.8,3309.7,1.45021911]
[1765366801272,0.7384,3310.0,3309.9,1.4418]
[1765366801462,0.7384,3310.0,3309.7,0.00841911]
[1765366801463,1.4703,3309.8,3309.7,0.00841911]
[1765366801663,1.4703,3309.8,3309.7,0.71931911]
[1765366801861,1.4703,3309.8,3309.7,0.00841911]
[1765366802073,3.99791631,3309.8,3308.5,0.4273]
[1765366802268,0.7384,3308.6,3308.5,1.8691]